fUSD/lending_fUSD_20240327
["ID","MTS","AMOUNT","RATE_DAILY","PERIOD"]
[320796299,1711561862230,-151.0,0.00054246,120]
[320796300,1711561862239,-500.0,0.00054246,120]
[320796301,1711561862247,-500.0,0.00054246,120]
[320796302,1711561862257,-1500.57,0.00054246,120]
[320796303,1711561862267,-500.0,0.00054246,120]
[320796304,1711561862277,-500.0,0.00054246,120]
[320796305,1711561862286,-500.0,0.00054246,120]
[320796306,1711561862296,-1293.46,0.00054246,120]
[320796307,1711561862309,-663.1,0.00054246,120]
[320796308,1711561862320,-500.0,0.00054246,120]
[320796309,1711561862330,-500.0,0.00054246,120]
[320796310,1711561862340,-500.0,0.00054246,120]
[320796311,1711561862350,-300.0,0.00054246,2]
[320796312,1711561862360,-500.0,0.00054246,120]
[320796313,1711561862369,-500.0,0.00054246,120]
[320796314,1711561862380,-500.0,0.00054246,120]
[320796315,1711561862391,-500.0,0.00054246,120]
[320796316,1711561862402,-500.0,0.00054246,120]
[320796317,1711561862411,-591.57,0.00054246,120]
[320796318,1711561862421,-504.81313998,0.00054246,120]
[320796319,1711561862431,-500.0,0.00054246,120]
[320796320,1711561862440,-500.0,0.00054246,120]
[320796321,1711561862450,-503.40689605,0.00054246,120]
[320796322,1711561862459,-540.2,0.00054246,120]
[320796323,1711561862473,-500.0,0.00054246,120]
[320796324,1711561862490,-500.0,0.00054246,120]
[320796325,1711561862503,-500.0,0.00054246,120]
[320796326,1711561862513,-500.0,0.00054246,120]
[320796327,1711561862524,-500.0,0.00054246,120]
[320796328,1711561862534,-826.04,0.00054246,120]
[320796329,1711561862543,-802.7,0.00054246,120]
[320796330,1711561862552,-500.0,0.00054246,120]
[320796331,1711561862562,-500.0,0.00054246,120]
[320796332,1711561862571,-500.0,0.00054246,120]
[320796333,1711561862581,-500.0,0.00054246,120]
[320796334,1711561862590,-500.0,0.00054246,120]
[320796335,1711561862599,-792.47,0.00054246,120]
[320796336,1711561862609,-551.8,0.00054246,120]
[320796337,1711561862619,-519.94,0.00054246,120]
[320796338,1711561862629,-500.0,0.00054246,120]
[320796339,1711561862638,-500.0,0.00054246,120]
[320796340,1711561862648,-500.0,0.00054246,120]
[320796341,1711561862656,-500.0,0.00054246,120]
[320796342,1711561862666,-500.0,0.00054246,120]
[320796343,1711561862675,-500.0,0.00054246,120]
[320796344,1711561862686,-507.03,0.00054246,120]
[320796345,1711561862695,-339.80743607,0.00054246,120]
[320796346,1711561862706,-500.0,0.00054246,120]
[320796347,1711561862715,-814.62,0.00054246,120]
[320796348,1711561862725,-500.0,0.00054246,120]
[320796349,1711561862735,-500.0,0.00054246,120]
[320796350,1711561862744,-500.0,0.00054246,120]
[320796351,1711561862754,-500.0,0.00054246,120]
[320796352,1711561862764,-500.0,0.00054246,120]
[320796353,1711561862773,-500.0,0.00054246,120]
[320796354,1711561862783,-500.0,0.00054246,120]
[320796355,1711561862792,-586.26,0.00054246,120]
[320796356,1711561862801,-500.0,0.00054246,120]
[320796357,1711561862811,-151.0,0.00054246,120]
[320796358,1711561862820,-519.12,0.00054246,120]
[320796359,1711561862829,-501.85448494,0.00054246,120]
[320796360,1711561862838,-500.0,0.00054246,2]
[320796361,1711561862847,-500.0,0.00054246,120]
[320796362,1711561862860,-500.0,0.00054246,120]
[320796363,1711561862869,-500.0,0.00054246,120]
[320796364,1711561862878,-500.0,0.00054246,120]
[320796365,1711561862888,-500.0,0.00054246,120]
[320796366,1711561862897,-500.0,0.00054246,120]
[320796367,1711561862907,-358.93939783,0.00054246,120]
[320796368,1711561862916,-500.0,0.00054246,120]
[320796369,1711561862925,-601.25366618,0.00054246,120]
[320796370,1711561862935,-500.0,0.00054246,120]
[320796371,1711561862945,-553.94,0.00054246,120]
[320796372,1711561862954,-1363.26,0.00054246,120]
[320796373,1711561862963,-513.39089536,0.00054246,120]
[320796374,1711561862972,-1247.0,0.00054246,120]
[320796375,1711561862982,-500.0,0.00054246,120]
[320796376,1711561862992,-681.15,0.00054246,120]
[320796377,1711561863001,-500.0,0.00054246,120]
[320796378,1711561863010,-500.0,0.00054246,120]
[320796379,1711561863021,-828.0,0.00054246,120]
[320796380,1711561863031,-500.0,0.00054246,120]
[320796381,1711561863041,-500.0,0.00054246,120]
[320796382,1711561863050,-506.94737784,0.00054246,120]
[320796383,1711561863060,-907.95,0.00054246,120]
[320796384,1711561863070,-500.0,0.00054246,120]
[320796385,1711561863080,-691.03,0.00054246,120]
[320796386,1711561863089,-501.49036201,0.00054246,120]
[320796387,1711561863099,-500.0,0.00054246,120]
[320796388,1711561863108,-500.0,0.00054246,120]
[320796389,1711561863117,-500.0,0.00054246,120]
[320796390,1711561863126,-500.0,0.00054246,120]
[320796391,1711561863136,-503.66226138,0.00054246,120]
[320796392,1711561863145,-500.0,0.00054246,120]
[320796393,1711561863155,-500.0,0.00054246,120]
[320796394,1711561863164,-1943.45,0.00054246,120]
[320796395,1711561863174,-1363.72,0.00054246,120]
[320796396,1711561863184,-204.288628,0.00054246,120]
[320796397,1711561863193,-500.0,0.00054246,120]
[320796398,1711561863203,-500.0,0.00054246,120]
[320796399,1711561863212,-500.0,0.00054246,120]
[320796400,1711561863222,-204.288628,0.00054246,120]
[320796401,1711561863231,-500.0,0.00054246,120]
[320796402,1711561863239,-500.0,0.00054246,120]
[320796403,1711561863248,-500.0,0.00054246,120]
[320796404,1711561863257,-500.0,0.00054246,120]
[320796405,1711561863266,-500.0,0.00054246,120]
[320796406,1711561863275,-354.80018238,0.00054246,120]
[320796407,1711561863284,-1264.66,0.00054246,120]
[320796408,1711561863294,-500.0,0.00054246,120]
[320796409,1711561863303,-518.11,0.00054246,120]
[320796410,1711561863312,-500.0,0.00054246,120]
[320796411,1711561863322,-500.0,0.00054246,120]
[320796412,1711561863332,-500.0,0.00054246,120]
[320796413,1711561863341,-191.520487,0.00054246,120]
[320796414,1711561863350,-500.0,0.00054246,120]
[320796415,1711561863359,-785.6,0.00054246,120]
[320796416,1711561863368,-151.0,0.00054246,120]
[320796417,1711561863378,-500.0,0.00054246,120]
[320796418,1711561863387,-500.0,0.00054246,120]
[320796419,1711561863396,-500.0,0.00054246,120]
[320796420,1711561863405,-500.0,0.00054246,120]
[320796421,1711561863415,-500.0,0.00054246,120]
[320796422,1711561863424,-500.0,0.00054246,120]
[320796423,1711561863433,-533.96,0.00054246,120]
[320796424,1711561863442,-191.520487,0.00054246,120]
[320796425,1711561863451,-417.78,0.00054246,120]
[320796426,1711561863461,-610.76,0.00054246,120]
[320796427,1711561863470,-500.0,0.00054246,120]
[320796428,1711561863480,-500.0,0.00054246,120]
[320796429,1711561863489,-500.0,0.00054246,120]
[320796430,1711561863498,-500.0,0.00054246,120]
[320796431,1711561863508,-250.635261,0.00054246,120]
[320796432,1711561863518,-500.0,0.00054246,120]
[320796433,1711561863527,-500.0,0.00054246,120]
[320796434,1711561863536,-619.35,0.00054246,120]
[320796435,1711561863546,-601.27,0.00054246,120]
[320796436,1711561863555,-250.635261,0.00054246,120]
[320796437,1711561863565,-151.576563,0.00054246,120]
[320796438,1711561863575,-500.0,0.00054246,120]
[320796439,1711561863584,-500.0,0.00054246,120]
[320796440,1711561863594,-723.32,0.00054246,120]
[320796441,1711561863603,-240.242065,0.00054246,120]
[320796442,1711561863612,-151.576563,0.00054246,120]
[320796443,1711561863622,-658.94,0.00054246,30]
[320796444,1711561863631,-500.0,0.00054246,120]
[320796445,1711561863641,-240.242065,0.00054246,120]
[320796446,1711561863650,-604.53,0.00054246,120]
[320796447,1711561863660,-500.0,0.00054246,120]
[320796448,1711561863669,-151.0,0.00054246,120]
[320796449,1711561863679,-593.82,0.00054246,120]
[320796450,1711561863688,-500.0,0.00054246,120]
[320796451,1711561863697,-627.6,0.00054246,120]
[320796452,1711561863707,-342.284432,0.00054246,120]
[320796453,1711561863716,-500.0,0.00054246,120]
[320796454,1711561863725,-342.284432,0.00054246,120]
[320796455,1711561863734,-541.49,0.00054246,120]
[320796456,1711561863743,-502.00158178,0.00054246,120]
[320796457,1711561863752,-500.0,0.00054246,120]
[320796458,1711561863762,-500.0,0.00054246,120]
[320796459,1711561863771,-525.41,0.00054246,120]
[320796460,1711561863780,-500.0,0.00054246,120]
[320796461,1711561863790,-508.76462575,0.00054246,120]
[320796462,1711561863799,-500.0,0.00054246,120]
[320796463,1711561863809,-1259.13,0.00054246,120]
[320796464,1711561863819,-500.0,0.00054246,120]
[320796465,1711561863828,-500.0,0.00054246,120]
[320796466,1711561863837,-511.82010114,0.00054246,120]
[320796467,1711561863847,-500.0,0.00054246,120]
[320796468,1711561863861,-500.0,0.00054246,120]
[320796469,1711561863870,-500.0,0.00054246,120]
[320796470,1711561863880,-1285.86,0.00054246,120]
[320796471,1711561863889,-1118.41,0.00054246,120]
[320796472,1711561863900,-961.87,0.00054246,120]
[320796473,1711561863909,-500.0,0.00054246,120]
[320796474,1711561863918,-500.0,0.00054246,120]
[320796475,1711561863927,-500.0,0.00054246,120]
[320796476,1711561863937,-500.0,0.00054246,120]
[320796477,1711561863946,-500.0,0.00054246,120]
[320796478,1711561863956,-500.0,0.00054246,120]
[320796479,1711561863965,-500.0,0.00054246,120]
[320796480,1711561863974,-653.33,0.00054246,120]
[320796481,1711561863983,-500.0,0.00054246,120]
[320796482,1711561863993,-500.0,0.00054246,120]
[320796483,1711561864002,-515.61,0.00054246,120]
[320796484,1711561864011,-500.0,0.00054246,120]
[320796485,1711561864021,-500.0,0.00054246,120]
[320796486,1711561864030,-500.0,0.00054246,120]
[320796487,1711561864039,-500.0,0.00054246,120]
[320796488,1711561864049,-508.95014968,0.00054246,120]
[320796489,1711561864058,-500.0,0.00054246,120]
[320796490,1711561864067,-500.0,0.00054246,120]
[320796491,1711561864076,-500.0,0.00054246,120]
[320796492,1711561864085,-881.34,0.00054246,120]
[320796493,1711561864094,-594.96,0.00054246,120]
[320796494,1711561864103,-500.0,0.00054246,120]
[320796495,1711561864113,-500.0,0.00054246,120]
[320796496,1711561864122,-635.55,0.00054246,120]
[320796497,1711561864131,-500.0,0.00054246,120]
[320796498,1711561864140,-500.0,0.00054246,120]
[320796499,1711561864149,-500.0,0.00054246,120]
[320796500,1711561864159,-500.0,0.00054246,120]
[320796501,1711561864168,-500.0,0.00054246,120]
[320796502,1711561864177,-500.0,0.00054246,120]
[320796503,1711561864186,-569.07,0.00054246,120]
[320796504,1711561864195,-500.0,0.00054246,120]
[320796505,1711561864205,-507.05,0.00054246,120]
[320796506,1711561864214,-503.2428474,0.00054246,120]
[320796507,1711561864223,-513.81,0.00054246,120]
[320796508,1711561864233,-885.2,0.00054246,120]
[320796509,1711561864242,-500.0,0.00054246,120]
[320796510,1711561864251,-500.0,0.00054246,120]
[320796511,1711561864260,-500.0,0.00054246,120]
[320796512,1711561864270,-500.0,0.00054246,7]
[320796513,1711561864279,-500.0,0.00054246,120]
[320796514,1711561864288,-345.9,0.00054246,120]
[320796515,1711561864297,-500.0,0.00054246,120]
[320796516,1711561864306,-500.0,0.00054246,120]
[320796517,1711561864315,-969.37,0.00054246,120]
[320796518,1711561864325,-500.0,0.00054246,120]
[320796519,1711561864334,-500.0,0.00054246,120]
[320796520,1711561864344,-500.0,0.00054246,120]
[320796521,1711561864353,-500.0,0.00054246,120]
[320796522,1711561864362,-500.0,0.00054246,120]
[320796523,1711561864371,-712.96,0.00054246,120]
[320796524,1711561864380,-500.0,0.00054246,120]
[320796525,1711561864389,-500.0,0.00054246,120]
[320796526,1711561864399,-500.0,0.00054246,120]
[320796527,1711561864408,-500.0,0.00054246,120]
[320796528,1711561864417,-500.0,0.00054246,120]
[320796529,1711561864427,-500.0,0.00054246,120]
[320796530,1711561864436,-500.0,0.00054246,120]
[320796531,1711561864446,-500.0,0.00054246,120]
[320796532,1711561864455,-500.0,0.00054246,120]
[320796533,1711561864464,-607.67,0.00054246,120]
[320796534,1711561864474,-500.0,0.00054246,120]
[320796535,1711561864483,-500.0,0.00054246,120]
[320796536,1711561864492,-500.0,0.00054246,120]
[320796537,1711561864501,-500.0,0.00054246,120]
[320796538,1711561864510,-500.0,0.00054246,120]
[320796539,1711561864520,-631.34,0.00054246,60]
[320796540,1711561864529,-500.0,0.00054246,120]
[320796541,1711561864538,-572.09,0.00054246,120]
[320796542,1711561864547,-500.0,0.00054246,120]
[320796543,1711561864556,-633.56,0.00054246,120]
[320796544,1711561864566,-500.0,0.00054246,120]
[320796545,1711561864577,-500.0,0.00054246,120]
[320796546,1711561864586,-390.88947969,0.00054246,120]
[320796547,1711561864595,-1276.08,0.00054246,120]
[320796548,1711561864605,-500.0,0.00054246,120]
[320796549,1711561864614,-302.296389,0.00054246,120]
[320796550,1711561864623,-500.0,0.00054246,120]
[320796551,1711561864633,-500.0,0.00054246,120]
[320796552,1711561864642,-500.0,0.00054246,120]
[320796553,1711561864651,-302.296389,0.00054246,120]
[320796554,1711561864661,-505.84831035,0.00054246,120]
[320796555,1711561864670,-151.0,0.00054246,120]
[320796556,1711561864679,-743.04,0.00054246,120]
[320796557,1711561864689,-500.0,0.00054246,120]
[320796558,1711561864699,-500.0,0.00054246,120]
[320796559,1711561864709,-500.0,0.00054246,120]
[320796560,1711561864719,-500.0,0.00054246,120]
[320796561,1711561864728,-440.33232155,0.00054246,120]
[320796562,1711561864738,-500.0,0.00054246,120]
[320796563,1711561864931,-500.0,0.00054246,120]
[320796564,1711561864941,-500.0,0.00054246,120]
[320796565,1711561864950,-994.38,0.00054246,120]
[320796566,1711561864959,-645.47,0.00054246,120]
[320796567,1711561864969,-500.0,0.00054246,120]
[320796568,1711561864978,-1464.37,0.00054246,120]
[320796569,1711561864987,-500.0,0.00054246,120]
[320796570,1711561864996,-151.0,0.00054246,120]
[320796571,1711561865005,-500.0,0.00054246,120]
[320796572,1711561865015,-500.0,0.00054246,120]
[320796573,1711561865025,-500.0,0.00054246,120]
[320796574,1711561865034,-500.0,0.00054246,120]
[320796575,1711561865045,-1308.17,0.00054246,120]
[320796576,1711561865055,-500.0,0.00054246,120]
[320796577,1711561865071,-500.0,0.00054246,120]
[320796578,1711561865082,-500.0,0.00054246,120]
[320796579,1711561865092,-500.0,0.00054246,120]
[320796580,1711561865102,-500.0,0.00054246,120]
[320796581,1711561865113,-500.0,0.00054246,120]
[320796582,1711561865123,-500.0,0.00054246,120]
[320796583,1711561865134,-500.0,0.00054246,120]
[320796584,1711561865144,-500.0,0.00054246,120]
[320796585,1711561865155,-1966.83,0.00054246,120]
[320796586,1711561865165,-500.0,0.00054246,120]
[320796587,1711561865175,-882.23,0.00054246,120]
[320796588,1711561865185,-1167.58,0.00054246,120]
[320796589,1711561865195,-500.0,0.00054246,120]
[320796590,1711561865208,-500.0,0.00054246,120]
[320796591,1711561865218,-939.99,0.00054246,120]
[320796592,1711561865228,-500.0,0.00054246,120]
[320796593,1711561865238,-500.0,0.00054246,120]
[320796594,1711561865247,-1680.42,0.00054246,120]
[320796595,1711561865258,-500.0,0.00054246,120]
[320796596,1711561865267,-500.0,0.00054246,120]
[320796597,1711561865277,-654.45,0.00054246,120]
[320796598,1711561865287,-1090.78,0.00054246,120]
[320796599,1711561865297,-313.23,0.00054246,120]
[320796600,1711561865306,-500.0,0.00054246,120]
[320796601,1711561865316,-500.0,0.00054246,120]
[320796602,1711561865332,-500.0,0.00054246,120]
[320796603,1711561865343,-5693.99,0.00054246,120]
[320796604,1711561865354,-172.20400705,0.00054246,120]
[320796605,1711561865364,-2767.8,0.00054246,120]
[320796606,1711561865374,-500.0,0.00054246,120]
[320796607,1711561865385,-631.11,0.00054246,120]
[320796608,1711561865396,-151.0,0.00054246,120]
[320796609,1711561865406,-500.0,0.00054246,120]
[320796610,1711561865418,-500.0,0.00054246,120]
[320796611,1711561865429,-500.0,0.00054246,120]
[320796612,1711561865439,-500.0,0.00054246,120]
[320796613,1711561865450,-500.0,0.00054246,120]
[320796614,1711561865460,-638.94,0.00054246,120]
[320796615,1711561865470,-500.0,0.00054246,120]
[320796616,1711561865480,-500.0,0.00054246,120]
[320796617,1711561865491,-3576.66,0.00054246,120]
[320796618,1711561865501,-1880.06,0.00054246,120]
[320796619,1711561865512,-597.69,0.00054246,120]
[320796620,1711561865522,-1154.81,0.00054246,120]
[320796621,1711561865532,-500.0,0.00054246,120]
[320796622,1711561865542,-500.0,0.00054246,120]
[320796623,1711561865552,-500.0,0.00054246,120]
[320796624,1711561865562,-11680.99,0.00054246,120]
[320796625,1711561865575,-1513.74,0.00054246,120]
[320796626,1711561865584,-500.0,0.00054246,120]
[320796627,1711561865594,-500.0,0.00054246,120]
[320796628,1711561865604,-500.0,0.00054246,120]
[320796629,1711561865614,-216.46412,0.00054246,120]
[320796630,1711561865624,-500.0,0.00054246,120]
[320796631,1711561865634,-4891.01,0.00054246,120]
[320796632,1711561865644,-500.0,0.00054246,120]
[320796633,1711561865654,-820.32,0.00054246,120]
[320796634,1711561865664,-2266.19,0.00054246,120]
[320796635,1711561865673,-500.0,0.00054246,120]
[320796636,1711561865683,-509.9928841,0.00054246,120]
[320796637,1711561865692,-500.0,0.00054246,120]
[320796638,1711561865703,-4319.88,0.00054246,120]
[320796639,1711561865713,-503.08594213,0.00054246,120]
[320796640,1711561865723,-638.01,0.00054246,120]
[320796641,1711561865733,-500.0,0.00054246,120]
[320796642,1711561865742,-509.19984286,0.00054246,120]
[320796643,1711561865752,-500.0,0.00054246,120]
[320796644,1711561865762,-1948.43,0.00054246,120]
[320796645,1711561865771,-594.89,0.00054246,120]
[320796646,1711561865781,-58191.63,0.00054246,120]
[320796647,1711561865791,-4872.06,0.00054246,120]
[320796648,1711561865801,-500.0,0.00054246,120]
[320796649,1711561865810,-500.0,0.00054246,120]
[320796650,1711561865821,-500.0,0.00054246,120]
[320796651,1711561865831,-500.0,0.00054246,120]
[320796652,1711561865840,-916.42,0.00054246,120]
[320796653,1711561865853,-25819.15,0.00054246,120]
[320796654,1711561865864,-500.0,0.00054246,120]
[320796655,1711561865874,-500.0,0.00054246,120]
[320796656,1711561865884,-672.12,0.00054246,120]
[320796657,1711561865894,-500.0,0.00054246,120]
[320796658,1711561865904,-500.0,0.00054246,120]
[320796659,1711561865914,-2822.64,0.00054246,120]
[320796660,1711561865924,-5739.01,0.00054246,120]
[320796661,1711561865934,-500.0,0.00054246,120]
[320796662,1711561865944,-7896.21,0.00054246,120]
[320796663,1711561865955,-1773.91,0.00054246,120]
[320796664,1711561865965,-1599.36,0.00054246,120]
[320796665,1711561865975,-500.0,0.00054246,120]
[320796666,1711561865985,-500.0,0.00054246,120]
[320796667,1711561865996,-580.5,0.00054246,120]
[320796668,1711561866006,-500.0,0.00054246,120]
[320796669,1711561866016,-500.0,0.00054246,120]
[320796670,1711561866026,-500.0,0.00054246,120]
[320796671,1711561866037,-702.31,0.00054246,120]
[320796672,1711561866047,-500.0,0.00054246,120]
[320796673,1711561866058,-500.0,0.00054246,120]
[320796674,1711561866068,-962.02,0.00054246,120]
[320796675,1711561866081,-4077.6,0.00054246,120]
[320796676,1711561866092,-1910.86,0.00054246,120]
[320796677,1711561866101,-500.0,0.00054246,120]
[320796678,1711561866112,-500.0,0.00054246,120]
[320796679,1711561866122,-500.0,0.00054246,120]
[320796680,1711561866132,-993.68,0.00054246,120]
[320796681,1711561866142,-1981.61,0.00054246,120]
[320796682,1711561866151,-151.0,0.00054246,120]
[320796683,1711561866161,-1310.9,0.00054246,120]
[320796684,1711561866170,-5861.79,0.00054246,120]
[320796685,1711561866180,-500.0,0.00054246,120]
[320796686,1711561866190,-500.0,0.00054246,120]
[320796687,1711561866200,-500.0,0.00054246,120]
[320796688,1711561866210,-542.72,0.00054246,120]
[320796689,1711561866220,-861.74,0.00054246,120]
[320796690,1711561866230,-3868.28,0.00054246,120]
[320796691,1711561866240,-500.0,0.00054246,120]
[320796692,1711561866250,-4602.46,0.00054246,120]
[320796693,1711561866260,-500.0,0.00054246,120]
[320796694,1711561866270,-500.0,0.00054246,120]
[320796695,1711561866279,-500.0,0.00054246,120]
[320796696,1711561866289,-2663.41,0.00054246,120]
[320796697,1711561866299,-2285.5,0.00054246,120]
[320796698,1711561866308,-7201.79,0.00054246,120]
[320796699,1711561866317,-151.0,0.00054246,120]
[320796700,1711561866331,-1041.92,0.00054246,120]
[320796701,1711561866340,-500.0,0.00054246,120]
[320796702,1711561866350,-2054.16,0.00054246,120]
[320796703,1711561866360,-500.0,0.00054246,120]
[320796704,1711561866371,-500.0,0.00054246,120]
[320796705,1711561866381,-277.40728,0.00054246,120]
[320796706,1711561866391,-500.0,0.00054246,120]
[320796707,1711561866401,-500.0,0.00054246,120]
[320796708,1711561866411,-1431.94,0.00054246,120]
[320796709,1711561866421,-500.0,0.00054246,120]
[320796710,1711561866431,-500.0,0.00054246,120]
[320796711,1711561866441,-18909.02,0.00054246,120]
[320796712,1711561866450,-1528.43,0.00054246,120]
[320796713,1711561866460,-836.18,0.00054246,120]
[320796714,1711561866470,-1715.09,0.00054246,120]
[320796715,1711561866479,-543.42,0.00054246,120]
[320796716,1711561866488,-500.0,0.00054246,120]
[320796717,1711561866498,-1000.0,0.00054246,14]
[320796718,1711561866508,-500.0,0.00054246,120]
[320796719,1711561866519,-500.0,0.00054246,120]
[320796720,1711561866529,-2529.3,0.00054246,120]
[320796721,1711561866539,-500.0,0.00054246,120]
[320796722,1711561866548,-1204.05,0.00054246,120]
[320796723,1711561866558,-500.0,0.00054246,120]
[320796724,1711561866569,-1890.07,0.00054246,120]
[320796725,1711561866580,-500.0,0.00054246,120]
[320796726,1711561866590,-500.0,0.00054246,120]
[320796727,1711561866600,-882.15,0.00054246,120]
[320796728,1711561866610,-1395.77,0.00054246,120]
[320796729,1711561866620,-500.0,0.00054246,120]
[320796730,1711561866630,-500.0,0.00054246,120]
[320796731,1711561866640,-500.0,0.00054246,120]
[320796732,1711561866650,-500.0,0.00054246,120]
[320796733,1711561866660,-500.0,0.00054246,120]
[320796734,1711561866671,-22066.4,0.00054246,120]
[320796735,1711561866681,-3276.54,0.00054246,120]
[320796736,1711561866691,-9133.29,0.00054246,120]
[320796737,1711561866702,-500.0,0.00054246,120]
[320796738,1711561866712,-500.0,0.00054246,120]
[320796739,1711561866722,-500.0,0.00054246,120]
[320796740,1711561866733,-3779.21,0.00054246,120]
[320796741,1711561866743,-500.0,0.00054246,120]
[320796742,1711561866753,-505.39,0.00054246,120]
[320796743,1711561866763,-1407.53,0.00054246,120]
[320796744,1711561866772,-500.0,0.00054246,120]
[320796745,1711561866784,-500.0,0.00054246,120]
[320796746,1711561866793,-500.0,0.00054246,120]
[320796747,1711561866803,-500.0,0.00054246,120]
[320796748,1711561866814,-361.03692873,0.00054246,120]
[320796749,1711561866825,-151.0,0.00054246,30]
[320796750,1711561866842,-1780.21,0.00054246,120]
[320796751,1711561866852,-500.0,0.00054246,120]
[320796752,1711561866870,-744.71,0.00054246,120]
[320796753,1711561866884,-3375.62,0.00054246,120]
[320796754,1711561866900,-500.0,0.00054246,120]
[320796755,1711561866910,-1245.33,0.00054246,120]
[320796756,1711561866920,-866.75,0.00054246,120]
[320796757,1711561866929,-825.22,0.00054246,120]
[320796758,1711561866939,-500.0,0.00054246,120]
[320796759,1711561866948,-500.0,0.00054246,120]
[320796760,1711561866958,-500.0,0.00054246,120]
[320796761,1711561866974,-500.0,0.00054246,120]
[320796762,1711561866983,-2499.0,0.00054246,120]
[320796763,1711561866992,-1139.82,0.00054246,120]
[320796764,1711561867002,-3390.46,0.00054246,120]
[320796765,1711561867013,-500.0,0.00054246,120]
[320796766,1711561867022,-500.0,0.00054246,120]
[320796767,1711561867033,-500.0,0.00054246,120]
[320796768,1711561867042,-2297.82,0.00054246,120]
[320796769,1711561867052,-2115.9,0.00054246,120]
[320796770,1711561867062,-36215.98,0.00054246,120]
[320796771,1711561867071,-500.0,0.00054246,120]
[320796772,1711561867082,-504.0,0.00054246,120]
[320796773,1711561867091,-500.0,0.00054246,120]
[320796774,1711561867101,-635.43,0.00054246,120]
[320796775,1711561867110,-509.72,0.00054246,7]
[320796776,1711561867120,-500.0,0.00054246,120]
[320796777,1711561867129,-1985.21,0.00054246,120]
[320796778,1711561867138,-500.0,0.00054246,120]
[320796779,1711561867148,-4093.44,0.00054246,120]
[320796780,1711561867157,-598.33,0.00054246,120]
[320796781,1711561867167,-479.754063,0.00054246,120]
[320796782,1711561867177,-500.0,0.00054246,120]
[320796783,1711561867187,-3703.02,0.00054246,120]
[320796784,1711561867196,-3170.6,0.00054246,120]
[320796785,1711561867206,-479.754063,0.00054246,120]
[320796786,1711561867225,-4518.78,0.00054246,120]
[320796787,1711561867235,-500.0,0.00054246,120]
[320796788,1711561867252,-816.34,0.00054246,120]
[320796789,1711561867261,-500.0,0.00054246,120]
[320796790,1711561867271,-500.0,0.00054246,120]
[320796791,1711561867289,-550.58,0.00054246,120]
[320796792,1711561867300,-5597.96,0.00054246,120]
[320796793,1711561867309,-500.0,0.00054246,2]
[320796794,1711561867319,-500.0,0.00054246,120]
[320796795,1711561867330,-1850.45,0.00054246,120]
[320796796,1711561867344,-3365.42,0.00054246,120]
[320796797,1711561867353,-152.147032,0.00054246,120]
[320796798,1711561867369,-500.0,0.00054246,120]